fUSD/lending_fUSD_20250612
["ID","MTS","AMOUNT","RATE_DAILY","PERIOD"]
[365481620,1749699059471,-488.16695981,0.00019342,2]
[365481621,1749699059480,-490.0,0.00019342,2]
[365481622,1749699059490,-457.2971912,0.00019342,2]
[365481623,1749699059500,-490.0,0.00019342,2]
[365481624,1749699059509,-378.35620098,0.00019342,2]
[365481625,1749699059519,-597.18,0.00019342,2]
[365481626,1749699059528,-490.0,0.00019342,2]
[365481627,1749699059538,-292.45351673,0.00019342,2]
[365481628,1749699059547,-151.0,0.00019342,2]
[365481629,1749699059556,-463.66794149,0.00019342,2]
[365481630,1749699059565,-214.194713,0.00019342,2]
[365481631,1749699059576,-356.51436934,0.00019342,2]
[365481632,1749699059586,-490.0,0.00019342,2]
[365481633,1749699059595,-478.94373919,0.00019342,2]
[365481634,1749699059605,-160.871325,0.00019342,2]
[365481635,1749699059614,-160.871325,0.00019342,2]
[365481636,1749699059624,-160.871325,0.00019342,2]
[365481637,1749699059634,-160.871325,0.00019342,2]
[365481638,1749699059644,-160.871325,0.00019342,2]
[365481639,1749699059653,-295.217423,0.00019342,2]
[365481640,1749699059662,-160.871325,0.00019342,2]
[365481641,1749699059672,-490.0,0.00019342,2]
[365481642,1749699059682,-151.0,0.00019342,2]
[365481643,1749699059692,-151.0,0.00019342,2]
[365481644,1749699059702,-151.0,0.00019342,2]
[365481645,1749699059712,-295.217423,0.00019342,2]
[365481646,1749699059722,-490.0,0.00019342,2]
[365481647,1749699059731,-303.06321817,0.00019342,2]
[365481648,1749699059741,-219.579226,0.00019342,2]
[365481649,1749699059751,-219.579226,0.00019342,2]
[365481650,1749699059761,-219.579226,0.00019342,2]
[365481651,1749699059771,-490.0,0.00019342,2]
[365481652,1749699059780,-219.579226,0.00019342,2]
[365481653,1749699059789,-219.579226,0.00019342,2]
[365481654,1749699059800,-219.579226,0.00019342,2]
[365481655,1749699059809,-290.509648,0.00019342,2]
[365481656,1749699059818,-490.0,0.00019342,2]
[365481657,1749699059829,-151.0,0.00019342,2]
[365481658,1749699059839,-154.251425,0.00019342,2]
[365481659,1749699059848,-490.0,0.00019342,2]
[365481660,1749699059858,-490.0,0.00019342,2]
[365481661,1749699059867,-490.0,0.00019342,2]
[365481662,1749699059878,-151.0,0.00019342,2]
[365481663,1749699059887,-165.883046,0.00019342,2]
[365481664,1749699059897,-490.0,0.00019342,2]
[365481665,1749699059906,-513.28008562,0.00019342,2]
[365481666,1749699059915,-490.0,0.00019342,2]
[365481667,1749699059925,-238.24836787,0.00019342,2]
[365481668,1749699059934,-151.0,0.00019342,2]
[365481669,1749699059943,-151.0,0.00019342,2]
[365481670,1749699059952,-490.0,0.00019342,2]
[365481671,1749699059961,-490.0,0.00019342,2]
[365481672,1749699059971,-151.0,0.00019342,2]
[365481673,1749699059980,-490.0,0.00019342,2]
[365481674,1749699059990,-271.609286,0.00019342,2]
[365481675,1749699060000,-490.0,0.00019342,2]
[365481676,1749699060009,-151.0,0.00019342,2]
[365481677,1749699060018,-270.715022,0.00019342,2]
[365481678,1749699060028,-151.0,0.00019342,2]
[365481679,1749699060038,-270.715022,0.00019342,2]
[365481680,1749699060048,-151.0,0.00019342,2]
[365481681,1749699060058,-490.0,0.00019342,2]
[365481682,1749699060067,-270.715022,0.00019342,2]
[365481683,1749699060078,-480.0,0.00019342,2]
[365481684,1749699060088,-490.0,0.00019342,2]
[365481685,1749699060097,-185.249291,0.00019342,2]
[365481686,1749699060107,-1038.3,0.00019342,2]
[365481687,1749699060117,-270.715022,0.00019342,2]
[365481688,1749699060127,-270.715022,0.00019342,2]
[365481689,1749699060136,-270.715022,0.00019342,2]
[365481690,1749699060146,-551.78141956,0.00019342,2]
[365481691,1749699060155,-490.0,0.00019342,2]
[365481692,1749699060165,-490.0,0.00019342,2]
[365481693,1749699060175,-490.0,0.00019342,2]
[365481694,1749699060185,-606.66428639,0.00019342,2]
[365481695,1749699060194,-530.8516304,0.00019342,2]
[365481696,1749699060204,-480.0,0.00019342,2]
[365481697,1749699060214,-490.0,0.00019342,2]
[365481698,1749699060223,-490.0,0.00019342,2]
[365481699,1749699060233,-490.0,0.00019342,2]
[365481700,1749699060242,-722.42,0.00019342,2]
[365481701,1749699060252,-667.96,0.00019342,2]
[365481702,1749699060262,-504.67574752,0.00019342,2]
[365481703,1749699060272,-490.0,0.00019342,2]
[365481704,1749699060286,-420.0,0.00019342,2]
[365481705,1749699060296,-562.25,0.00019342,2]
[365481706,1749699060305,-829.17,0.00019342,2]
[365481707,1749699060315,-490.0,0.00019342,2]
[365481708,1749699060326,-490.0,0.00019342,2]
[365481709,1749699060335,-484.29867432,0.00019342,2]
[365481710,1749699060345,-490.0,0.00019342,2]
[365481711,1749699060355,-493.54,0.00019342,2]
[365481712,1749699060364,-490.0,0.00019342,2]
[365481713,1749699060373,-570.35,0.00019342,2]
[365481714,1749699060383,-490.0,0.00019342,2]
[365481715,1749699060392,-151.0,0.00019342,2]
[365481716,1749699060401,-151.0,0.00019342,2]
[365481717,1749699060410,-151.0,0.00019342,2]
[365481718,1749699060419,-490.0,0.00019342,2]
[365481719,1749699060428,-151.0,0.00019342,2]
[365481720,1749699060439,-455.2439741,0.00019342,2]
[365481721,1749699060447,-151.0,0.00019342,2]
[365481722,1749699060457,-287.984638,0.00019342,2]
[365481723,1749699060466,-1381.288114,0.00019342,2]
[365481724,1749699060476,-1381.288114,0.00019342,2]
[365481725,1749699060485,-1381.288114,0.00019342,2]
[365481726,1749699060495,-490.0,0.00019342,2]
[365481727,1749699060504,-490.0,0.00019342,2]
[365481728,1749699060513,-971.63,0.00019342,2]
[365481729,1749699060523,-580.89,0.00019342,2]
[365481730,1749699060532,-632.73,0.00019342,2]
[365481731,1749699060541,-490.0,0.00019342,2]
[365481732,1749699060551,-536.79535966,0.00019342,2]
[365481733,1749699060560,-490.0,0.00019342,2]
[365481734,1749699060570,-151.0,0.00019342,2]
[365481735,1749699060581,-490.0,0.00019342,2]
[365481736,1749699060590,-151.0,0.00019342,2]
[365481737,1749699060600,-151.0,0.00019342,2]
[365481738,1749699060609,-490.0,0.00019342,2]
[365481739,1749699060619,-393.54229369,0.00019342,2]
[365481740,1749699060628,-460.41815585,0.00019342,2]
[365481741,1749699060638,-744.81,0.00019342,2]
[365481742,1749699060647,-225.82433124,0.00019342,2]
[365481743,1749699060657,-500.0,0.00019342,2]
[365481744,1749699060667,-490.0,0.00019342,2]
[365481745,1749699060676,-490.0,0.00019342,2]
[365481746,1749699060686,-490.0,0.00019342,2]
[365481747,1749699060695,-157.262618,0.00019342,2]
[365481748,1749699060705,-490.0,0.00019342,2]
[365481749,1749699060715,-490.0,0.00019342,2]
[365481750,1749699060725,-490.0,0.00019342,2]
[365481751,1749699060734,-1028.16,0.00019342,2]
[365481752,1749699060744,-508.86836797,0.00019342,2]
[365481753,1749699060754,-490.0,0.00019342,2]
[365481754,1749699060763,-514.76956332,0.00019342,2]
[365481755,1749699060772,-819.17,0.00019342,2]
[365481756,1749699060782,-503.08199767,0.00019342,2]
[365481757,1749699060792,-413.70856508,0.00019342,2]
[365481758,1749699060802,-499.48254071,0.00019342,2]
[365481759,1749699060812,-637.20973105,0.00019342,2]
[365481760,1749699060824,-490.0,0.00019342,2]
[365481761,1749699060834,-490.0,0.00019342,2]
[365481762,1749699060844,-490.0,0.00019342,2]
[365481763,1749699060853,-176.98228298,0.00019342,2]
[365481764,1749699060864,-490.0,0.00019342,2]
[365481765,1749699060873,-490.0,0.00019342,2]
[365481766,1749699060882,-490.0,0.00019342,2]
[365481767,1749699060892,-501.07211877,0.00019342,2]
[365481768,1749699060902,-490.0,0.00019342,2]
[365481769,1749699060912,-1160.07,0.00019342,2]
[365481770,1749699060922,-151.0,0.00019342,2]
[365481771,1749699060932,-151.0,0.00019342,2]
[365481772,1749699060942,-490.0,0.00019342,2]
[365481773,1749699060951,-151.0,0.00019342,2]
[365481774,1749699060961,-490.0,0.00019342,2]
[365481775,1749699060970,-151.0,0.00019342,2]
[365481776,1749699060979,-490.0,0.00019342,2]
[365481777,1749699060989,-151.0,0.00019342,2]
[365481778,1749699060998,-490.0,0.00019342,2]
[365481779,1749699061008,-151.0,0.00019342,2]
[365481780,1749699061018,-490.0,0.00019342,2]
[365481781,1749699061028,-1465.4,0.00019342,2]
[365481782,1749699061037,-490.0,0.00019342,2]
[365481783,1749699061047,-151.0,0.00019342,2]
[365481784,1749699061056,-151.0,0.00019342,2]
[365481785,1749699061065,-151.0,0.00019342,2]
[365481786,1749699061075,-1248.77,0.00019342,2]
[365481787,1749699061084,-490.0,0.00019342,2]
[365481788,1749699061094,-151.0,0.00019342,2]
[365481789,1749699061103,-151.0,0.00019342,2]
[365481790,1749699061113,-151.0,0.00019342,2]
[365481791,1749699061123,-490.0,0.00019342,2]
[365481792,1749699061132,-490.0,0.00019342,2]
[365481793,1749699061142,-490.0,0.00019342,2]
[365481794,1749699061151,-151.0,0.00019342,2]
[365481795,1749699061160,-1358.33,0.00019342,2]
[365481796,1749699061170,-790.25,0.00019342,2]
[365481797,1749699061179,-308.167725,0.00019342,2]
[365481798,1749699061189,-500.0,0.00019342,2]
[365481799,1749699061199,-490.0,0.00019342,2]
[365481800,1749699061208,-490.0,0.00019342,2]
[365481801,1749699061218,-490.0,0.00019342,2]
[365481802,1749699061227,-490.0,0.00019342,2]
[365481803,1749699061237,-739.73,0.00019342,2]
[365481804,1749699061247,-1185.85,0.00019342,2]
[365481805,1749699061257,-490.0,0.00019342,2]
[365481806,1749699061266,-490.0,0.00019342,2]
[365481807,1749699061279,-443.79509824,0.00019342,2]
[365481808,1749699061289,-490.0,0.00019342,2]
[365481809,1749699061299,-490.0,0.00019342,2]
[365481810,1749699061308,-911.94,0.00019342,2]
[365481811,1749699061319,-500.32033502,0.00019342,2]
[365481812,1749699061331,-458.04625584,0.00019342,2]
[365481813,1749699061340,-490.0,0.00019342,2]
[365481814,1749699061350,-977.26,0.00019342,2]
[365481815,1749699061361,-258.093631,0.00019342,2]
[365481816,1749699061371,-258.093631,0.00019342,2]
[365481817,1749699061380,-490.0,0.00019342,2]
[365481818,1749699061389,-258.093631,0.00019342,2]
[365481819,1749699061399,-379.371969,0.00019342,2]
[365481820,1749699061413,-1485.1,0.00019342,2]
[365481821,1749699061423,-379.371969,0.00019342,2]
[365481822,1749699061434,-1082.63,0.00019342,2]
[365481823,1749699061448,-258.093631,0.00019342,2]
[365481824,1749699061458,-2367.243277,0.00019342,2]
[365481825,1749699061468,-685.15,0.00019342,2]
[365481826,1749699061477,-379.371969,0.00019342,2]
[365481827,1749699061487,-490.0,0.00019342,2]
[365481828,1749699061497,-2367.243277,0.00019342,2]
[365481829,1749699061507,-379.371969,0.00019342,2]
[365481830,1749699061517,-258.093631,0.00019342,2]
[365481831,1749699061526,-2367.243277,0.00019342,2]
[365481832,1749699061537,-379.371969,0.00019342,2]
[365481833,1749699061546,-258.093631,0.00019342,2]
[365481834,1749699061556,-490.0,0.00019342,2]
[365481835,1749699061565,-2367.243277,0.00019342,2]
[365481836,1749699061575,-2367.243277,0.00019342,2]
[365481837,1749699061584,-2367.243277,0.00019342,2]
[365481838,1749699061595,-490.0,0.00019342,2]
[365481839,1749699061605,-568.49,0.00019342,2]
[365481840,1749699061615,-520.69272514,0.00019342,2]
[365481841,1749699061625,-677.92,0.00019342,2]
[365481842,1749699061636,-1238.68,0.00019342,2]
[365481843,1749699061646,-490.74669249,0.00019342,2]
[365481844,1749699061657,-925.11,0.00019342,2]
[365481845,1749699061667,-490.0,0.00019342,2]
[365481846,1749699061678,-492.61326649,0.00019342,2]
[365481847,1749699061689,-939.91,0.00019342,2]
[365481848,1749699061699,-490.0,0.00019342,2]
[365481849,1749699061709,-490.0,0.00019342,2]
[365481850,1749699061719,-490.0,0.00019342,2]
[365481851,1749699061730,-487.79794079,0.00019342,2]
[365481852,1749699061740,-490.0,0.00019342,2]
[365481853,1749699061751,-636.6366562,0.00019342,2]
[365481854,1749699061760,-467.54913703,0.00019342,2]
[365481855,1749699061770,-490.0,0.00019342,2]
[365481856,1749699061780,-151.0,0.00019342,2]
[365481857,1749699061790,-151.0,0.00019342,2]
[365481858,1749699061800,-997.72,0.00019342,2]
[365481859,1749699061810,-490.0,0.00019342,2]
[365481860,1749699061819,-229.4592661,0.00019342,2]
[365481861,1749699061831,-490.0,0.00019342,2]
[365481862,1749699061842,-490.0,0.00019342,2]
[365481863,1749699061852,-469.28157446,0.00019342,2]
[365481864,1749699061862,-490.0,0.00019342,2]
[365481865,1749699061872,-490.0,0.00019342,2]
[365481866,1749699061882,-151.0,0.00019342,2]
[365481867,1749699061891,-151.0,0.00019342,2]
[365481868,1749699061901,-151.0,0.00019342,2]
[365481869,1749699061911,-490.0,0.00019342,2]
[365481870,1749699061921,-151.0,0.00019342,2]
[365481871,1749699061931,-768.44,0.00019342,2]
[365481872,1749699061941,-151.0,0.00019342,2]
[365481873,1749699061951,-300.707043,0.00019342,2]
[365481874,1749699061960,-300.707043,0.00019342,2]
[365481875,1749699061970,-490.0,0.00019342,2]
[365481876,1749699061980,-490.0,0.00019342,2]
[365481877,1749699061990,-300.707043,0.00019342,2]
[365481878,1749699062000,-300.707043,0.00019342,2]
[365481879,1749699062010,-151.0,0.00019342,2]
[365481880,1749699062020,-153.035233,0.00019342,2]
[365481881,1749699062030,-463.63477427,0.00019342,2]
[365481882,1749699062040,-1012.56,0.00019342,2]
[365481883,1749699062050,-490.0,0.00019342,2]
[365481884,1749699062060,-1204.07,0.00019342,2]
[365481885,1749699062070,-337.9254869,0.00019342,2]
[365481886,1749699062081,-210.23079431,0.00019342,2]
[365481887,1749699062091,-490.0,0.00019342,2]
[365481888,1749699062101,-284.89439044,0.00019342,2]
[365481889,1749699062111,-490.0,0.00019342,2]
[365481890,1749699062121,-490.0,0.00019342,2]
[365481891,1749699062131,-310.24708947,0.00019342,2]
[365481892,1749699062142,-490.0,0.00019342,2]
[365481893,1749699062152,-496.35268129,0.00019342,2]
[365481894,1749699062162,-522.66,0.00019342,2]
[365481895,1749699062172,-721.39,0.00019342,2]
[365481896,1749699062182,-704.88,0.00019342,2]
[365481897,1749699062192,-406.22654964,0.00019342,2]
[365481898,1749699062202,-490.0,0.00019342,2]
[365481899,1749699062212,-1008.15,0.00019342,2]
[365481900,1749699062222,-490.0,0.00019342,2]
[365481901,1749699062232,-490.0,0.00019342,2]
[365481902,1749699062242,-1682.98,0.00019342,2]
[365481903,1749699062253,-490.0,0.00019342,2]
[365481904,1749699062264,-490.0,0.00019342,2]
[365481905,1749699062277,-490.0,0.00019342,2]
[365481906,1749699062291,-907.81,0.00019342,2]
[365481907,1749699062300,-423.31996753,0.00019342,2]
[365481908,1749699062309,-490.0,0.00019342,2]
[365481909,1749699062319,-490.0,0.00019342,2]
[365481910,1749699062330,-490.0,0.00019342,2]
[365481911,1749699062340,-1694.98,0.00019342,2]
[365481912,1749699062350,-1430.75,0.00019342,2]
[365481913,1749699062361,-490.0,0.00019342,2]
[365481914,1749699062372,-459.00146855,0.00019342,2]
[365481915,1749699062381,-595.72,0.00019342,2]
[365481916,1749699062391,-419.99955679,0.00019342,2]
[365481917,1749699062401,-490.0,0.00019342,2]
[365481918,1749699062410,-504.97558544,0.00019342,2]
[365481919,1749699062420,-923.97,0.00019342,2]
[365481920,1749699062430,-490.0,0.00019342,2]
[365481921,1749699062440,-490.0,0.00019342,2]
[365481922,1749699062450,-443.20549465,0.00019342,2]
[365481923,1749699062460,-490.0,0.00019342,2]
[365481924,1749699062470,-490.0,0.00019342,2]
[365481925,1749699062479,-630.67752559,0.00019342,2]
[365481926,1749699062490,-1437.3,0.00019342,2]
[365481927,1749699062500,-490.0,0.00019342,2]
[365481928,1749699062511,-1705.288627,0.00019342,2]
[365481929,1749699062523,-1705.288627,0.00019342,2]
[365481930,1749699062534,-445.71957995,0.00019342,2]
[365481931,1749699062544,-1705.288627,0.00019342,2]
[365481932,1749699062555,-490.0,0.00019342,2]
[365481933,1749699062564,-490.0,0.00019342,2]
[365481934,1749699062575,-1705.288627,0.00019342,2]
[365481935,1749699062584,-1705.288627,0.00019342,2]
[365481936,1749699062594,-490.0,0.00019342,2]
[365481937,1749699062604,-1705.288627,0.00019342,2]
[365481938,1749699062613,-1510.71,0.00019342,2]
[365481939,1749699062624,-490.0,0.00019342,2]
[365481940,1749699062634,-450.07834467,0.00019342,2]
[365481941,1749699062644,-455.28029786,0.00019342,2]
[365481942,1749699062655,-276.91364046,0.00019342,2]
[365481943,1749699062664,-490.0,0.00019342,2]
[365481944,1749699062674,-202.232234,0.00019342,2]
[365481945,1749699062684,-826.43,0.00019342,2]
[365481946,1749699062694,-490.0,0.00019342,2]
[365481947,1749699062704,-490.0,0.00019342,2]
[365481948,1749699062713,-490.0,0.00019342,2]
[365481949,1749699062723,-453.49949211,0.00019342,2]
[365481950,1749699062733,-490.0,0.00019342,2]
[365481951,1749699062743,-490.0,0.00019342,2]
[365481952,1749699062753,-638.73,0.00019342,2]
[365481953,1749699062763,-1295.73,0.00019342,2]
[365481954,1749699062773,-458.883496,0.00019342,2]
[365481955,1749699062783,-458.883496,0.00019342,2]
[365481956,1749699062792,-345.19328304,0.00019342,2]
[365481957,1749699062802,-1075.6,0.00019342,2]
[365481958,1749699062812,-490.0,0.00019342,2]
[365481959,1749699062822,-2461.98,0.00019342,2]
[365481960,1749699062831,-458.883496,0.00019342,2]
[365481961,1749699062841,-458.883496,0.00019342,2]
[365481962,1749699062850,-1273.72,0.00019342,2]
[365481963,1749699062861,-808.96,0.00019342,2]
[365481964,1749699062870,-151.0,0.00019342,2]
[365481965,1749699062880,-151.0,0.00019342,2]
[365481966,1749699062890,-490.0,0.00019342,2]
[365481967,1749699062899,-151.0,0.00019342,2]
[365481968,1749699062910,-490.0,0.00019342,2]
[365481969,1749699062919,-151.0,0.00019342,2]
[365481970,1749699062929,-151.0,0.00019342,2]
[365481971,1749699062938,-154.52552,0.00019342,2]
[365481972,1749699062948,-151.0,0.00019342,2]
[365481973,1749699062957,-490.0,0.00019342,2]
[365481974,1749699062967,-469.08605643,0.00019342,2]
[365481975,1749699062978,-151.0,0.00019342,2]
[365481976,1749699062987,-154.888178,0.00019342,2]
[365481977,1749699062998,-749.1,0.00019342,2]
[365481978,1749699063008,-151.0,0.00019342,2]
[365481979,1749699063018,-151.0,0.00019342,2]
[365481980,1749699063028,-151.0,0.00019342,2]
[365481981,1749699063038,-1228.67,0.00019342,2]
[365481982,1749699063049,-554.90648618,0.00019342,2]
[365481983,1749699063059,-976.86,0.00019342,2]
[365481984,1749699063070,-806.53,0.00019342,2]
[365481985,1749699063082,-490.0,0.00019342,2]
[365481986,1749699063092,-490.0,0.00019342,2]
[365481987,1749699063103,-1000.0,0.00019342,2]
[365481988,1749699063113,-1208.74,0.00019342,2]
[365481989,1749699063124,-193.397753,0.00019342,2]
[365481990,1749699063135,-193.397753,0.00019342,2]
[365481991,1749699063146,-193.397753,0.00019342,2]
[365481992,1749699063157,-1037.77,0.00019342,2]
[365481993,1749699063168,-193.397753,0.00019342,2]
[365481994,1749699063178,-193.397753,0.00019342,2]
[365481995,1749699063189,-193.397753,0.00019342,2]
[365481996,1749699063199,-151.0,0.00019342,2]
[365481997,1749699063210,-151.0,0.00019342,2]
[365481998,1749699063221,-151.0,0.00019342,2]
[365481999,1749699063231,-490.0,0.00019342,2]
[365482000,1749699063242,-151.0,0.00019342,2]
[365482001,1749699063253,-226.970412,0.00019342,2]
[365482002,1749699063264,-490.0,0.00019342,2]
[365482003,1749699063275,-490.0,0.00019342,2]
[365482004,1749699063288,-490.0,0.00019342,2]
[365482005,1749699063299,-500.0,0.00019342,2]
[365482006,1749699063309,-1244.12,0.00019342,2]
[365482007,1749699063320,-1170.42,0.00019342,2]
[365482008,1749699063332,-636.35,0.00019342,2]
[365482009,1749699063342,-161.575356,0.00019342,2]
[365482010,1749699063353,-440.25921487,0.00019342,2]
[365482011,1749699063364,-490.0,0.00019342,2]
[365482012,1749699063375,-490.0,0.00019342,2]
[365482013,1749699063385,-4615.57,0.00019342,2]
[365482014,1749699063396,-490.0,0.00019342,2]
[365482015,1749699063407,-490.0,0.00019342,2]
[365482016,1749699063417,-3741.15,0.00019342,2]
[365482017,1749699063427,-490.0,0.00019342,2]
[365482018,1749699063438,-2474.31,0.00019342,2]
[365482019,1749699063449,-1057.36,0.00019342,2]
[365482020,1749699063459,-1028.25,0.00019342,2]
[365482021,1749699063470,-204.845513,0.00019342,2]
[365482022,1749699063481,-567.48,0.00019342,2]
[365482023,1749699063491,-204.845513,0.00019342,2]
[365482024,1749699063502,-204.845513,0.00019342,2]
[365482025,1749699063512,-490.0,0.00019342,2]
[365482026,1749699063523,-323.61521952,0.00019342,2]
[365482027,1749699063534,-1654.75,0.00019342,2]
[365482028,1749699063544,-204.845513,0.00019342,2]
[365482029,1749699063555,-688.11,0.00019342,2]
[365482030,1749699063565,-204.845513,0.00019342,2]
[365482031,1749699063575,-204.845513,0.00019342,2]
[365482032,1749699063585,-5015.99,0.00019342,2]
[365482033,1749699063595,-711.43,0.00019342,2]
[365482034,1749699063604,-288.188548,0.00019342,2]
[365482035,1749699063615,-490.0,0.00019342,2]
[365482036,1749699063625,-967.45,0.00019342,2]
[365482037,1749699063635,-430.49854847,0.00019342,2]
[365482038,1749699063645,-288.188548,0.00019342,2]
[365482039,1749699063656,-2045.12,0.00019342,2]
[365482040,1749699063666,-490.0,0.00019342,2]
[365482041,1749699063676,-736.55,0.00019342,2]
[365482042,1749699063687,-288.188548,0.00019342,2]
[365482043,1749699063697,-288.188548,0.00019342,2]
[365482044,1749699063708,-1158.8,0.00019342,2]
[365482045,1749699063717,-1591.12,0.00019342,2]
[365482046,1749699063727,-11676.9,0.00019342,2]
[365482047,1749699063738,-490.0,0.00019342,2]
[365482048,1749699063748,-490.0,0.00019342,2]
[365482049,1749699063758,-490.0,0.00019342,2]
[365482050,1749699063768,-437.217976,0.00019342,2]
[365482051,1749699063779,-507.64,0.00019342,2]
[365482052,1749699063789,-437.217976,0.00019342,2]
[365482053,1749699064049,-437.217976,0.00019342,2]
[365482054,1749699064060,-490.0,0.00019342,2]
[365482055,1749699064070,-490.0,0.00019342,2]
[365482056,1749699064081,-490.0,0.00019342,2]
[365482057,1749699064091,-437.45979414,0.00019342,2]
[365482058,1749699064100,-1076.37,0.00019342,2]
[365482059,1749699064110,-1114.9,0.00019342,2]
[365482060,1749699064119,-1057.12,0.00019342,2]
[365482061,1749699064129,-2656.58,0.00019342,2]
[365482062,1749699064139,-437.217976,0.00019342,2]
[365482063,1749699064149,-437.217976,0.00019342,2]
[365482064,1749699064159,-490.0,0.00019342,2]
[365482065,1749699064169,-437.217976,0.00019342,2]
[365482066,1749699064179,-823.07,0.00019342,2]
[365482067,1749699064189,-266.169621,0.00019342,2]
[365482068,1749699064199,-490.0,0.00019342,2]
[365482069,1749699064208,-505.0369512,0.00019342,2]
[365482070,1749699064219,-2087.55,0.00019342,2]
[365482071,1749699064228,-490.0,0.00019342,2]
[365482072,1749699064238,-1881.8,0.00019342,2]
[365482073,1749699064248,-438.42492539,0.00019342,2]
[365482074,1749699064259,-1146.66,0.00019342,2]
[365482075,1749699064269,-1018.35,0.00019342,2]
[365482076,1749699064283,-882.02,0.00019342,2]
[365482077,1749699064293,-490.0,0.00019342,2]
[365482078,1749699064303,-490.0,0.00019342,2]
[365482079,1749699064313,-1075.55,0.00019342,2]
[365482080,1749699064325,-250.89419163,0.00019342,2]
[365482081,1749699064335,-490.0,0.00019342,2]
[365482082,1749699064345,-490.0,0.00019342,2]
[365482083,1749699064354,-2296.38,0.00019342,2]
[365482084,1749699064368,-151.0,0.00019342,2]
[365482085,1749699064378,-151.0,0.00019342,2]
[365482086,1749699064388,-1208.54,0.00019342,2]
[365482087,1749699064399,-986.14,0.00019342,2]
[365482088,1749699064408,-1582.34,0.00019342,2]
[365482089,1749699064418,-1128.88,0.00019342,2]
[365482090,1749699064427,-1354.12,0.00019342,2]
[365482091,1749699064437,-490.0,0.00019342,2]
[365482092,1749699064447,-490.0,0.00019342,2]
[365482093,1749699064456,-1357.51,0.00019342,2]
[365482094,1749699064466,-1390.91,0.00019342,2]
[365482095,1749699064476,-1928.326089,0.00019342,2]
[365482096,1749699064486,-1928.326089,0.00019342,2]
[365482097,1749699064496,-490.0,0.00019342,2]
[365482098,1749699064506,-1928.326089,0.00019342,2]
[365482099,1749699064516,-6692.21,0.00019342,2]
[365482100,1749699064526,-292.695018,0.00019342,2]
[365482101,1749699064535,-292.695018,0.00019342,2]
[365482102,1749699064545,-1141.57,0.00019342,2]
[365482103,1749699064555,-292.695018,0.00019342,2]
[365482104,1749699064566,-854.17,0.00019342,2]
[365482105,1749699064576,-421.83705581,0.00019342,2]
[365482106,1749699064585,-2058.74,0.00019342,2]
[365482107,1749699064595,-1928.326089,0.00019342,2]
[365482108,1749699064605,-1928.326089,0.00019342,2]
[365482109,1749699064615,-517.42434012,0.00019342,2]
[365482110,1749699064625,-877.93,0.00019342,2]
[365482111,1749699064635,-347.12262129,0.00019342,2]
[365482112,1749699064645,-1928.326089,0.00019342,2]
[365482113,1749699064654,-292.695018,0.00019342,2]
[365482114,1749699064664,-292.695018,0.00019342,2]
[365482115,1749699064675,-490.0,0.00019342,2]
[365482116,1749699064684,-292.695018,0.00019342,2]
[365482117,1749699064694,-1742.49,0.00019342,2]
[365482118,1749699064704,-1222.45,0.00019342,2]
[365482119,1749699064713,-490.0,0.00019342,2]